bitfinex/quotes_SOLUSD_20220210
["timestamp","ask_amount","ask_price","bid_price","bid_amount"]
[1644513229065,0.03313984,112.58,112.5,48.28275759]
[1644513229265,2.50727432,112.59,112.5,48.28275759]
[1644513229466,13.3328,112.58,112.5,48.28275759]
[1644513229866,2.54041416,112.6,112.5,48.28275759]
[1644513230367,4.47513984,112.6,112.5,48.28275759]
[1644513230968,4.47513984,112.6,112.5,72.29315759]
[1644513231166,0.03313984,112.6,112.51,4.442]
[1644513231370,0.03313984,112.61,112.52,10.68]
[1644513231567,13.36163984,112.62,112.52,10.68]
[1644513231866,0.03313984,112.62,112.53,48.16243517]
[1644513232066,40.5219927,112.64,112.53,58.84243517]
[1644513232269,0.03313984,112.63,112.53,58.84243517]
[1644513232469,2.54041416,112.64,112.53,58.84243517]
[1644513232666,13.35963984,112.63,112.53,72.16853517]
[1644513232867,13.3265,112.63,112.53,72.16853517]
[1644513233068,13.35963984,112.63,112.53,72.16853517]
[1644513233468,41.24254382,112.63,112.53,72.16853517]
[1644513233670,41.24254382,112.63,112.53,58.84243517]
[1644513233967,4.441,112.62,112.53,58.84243517]
[1644513234167,13.35963984,112.63,112.53,58.84243517]
[1644513235971,51.54303996,112.63,112.53,72.16883517]
[1644513236174,13.35963984,112.63,112.53,72.16883517]
[1644513236679,0.03313984,112.63,112.53,72.41883517]
[1644513236872,0.03313984,112.64,112.53,80.07307345]
[1644513237073,0.03313984,112.63,112.56,13.3227]
[1644513237274,0.03313984,112.64,112.57,35.4815904]
[1644513237472,0.03313984,112.66,112.57,35.4815904]
[1644513237672,37.77559358,112.67,112.57,35.4815904]
[1644513238072,13.3231,112.66,112.57,35.4815904]
[1644513238271,37.79111461,112.65,112.57,35.4815904]
[1644513238472,17.79523984,112.66,112.57,35.4815904]
[1644513238673,0.03313984,112.67,112.57,35.4815904]
[1644513238872,0.03313984,112.68,112.57,35.4815904]
[1644513239074,0.03313984,112.67,112.57,35.4815904]
[1644513239281,0.03313984,112.68,112.57,35.4815904]
[1644513239473,13.35543984,112.67,112.57,35.4815904]
[1644513239672,36.29691022,112.66,112.57,46.1615904]
[1644513240275,4.47213984,112.67,112.57,46.1615904]
[1644513240475,0.03313984,112.67,112.57,46.1615904]
[1644513240672,0.03313984,112.68,112.57,46.1615904]
[1644513240872,0.03313984,112.67,112.57,46.1615904]
[1644513241074,198.05527432,112.71,112.57,46.1615904]
[1644513241075,0.03313984,112.68,112.57,59.4837904]
[1644513241277,0.03313984,112.67,112.58,4.438]
[1644513241487,0.03313984,112.68,112.59,10.68]
[1644513241676,0.03313984,112.7,112.6,4.439]
[1644513241875,0.03313984,112.71,112.59,7.65423828]
[1644513242074,0.03313984,112.72,112.6,10.68]
[1644513242277,42.4329045,112.7,112.61,38.49131125]
[1644513242481,42.39976466,112.7,112.61,49.17131125]
[1644513242679,42.39976466,112.7,112.61,38.49131125]
[1644513242875,33.13380369,112.68,112.61,38.49131125]
[1644513243475,2.23122154,112.69,112.61,38.49131125]
[1644513243674,44.4074,112.7,112.61,38.49131125]
[1644513243878,44.4074,112.7,112.59,10.68]
[1644513244176,2.26436138,112.7,112.55,50.9154]
[1644513244377,4.47213984,112.69,112.55,52.4774]
[1644513244577,6.97941416,112.69,112.55,46.4774]
[1644513244877,43.54535157,112.66,112.53,39.64140928]
[1644513245079,4.47313984,112.65,112.48,10.68]
[1644513245278,10.71313984,112.64,112.47,58.3337]
[1644513245476,4.47513984,112.63,112.47,10.68]
[1644513245676,15.15513984,112.63,112.47,10.68]
[1644513245876,2.23122154,112.62,112.47,10.68]
[1644513246076,43.54535157,112.6,112.48,35.4455835]
[1644513246277,0.03313984,112.59,112.48,39.8875835]
[1644513246477,31.98821678,112.56,112.48,39.8875835]
[1644513246682,31.98821678,112.56,112.48,35.4455835]
[1644513247076,36.43021678,112.56,112.43,10.68]
[1644513247278,0.03313984,112.55,112.43,10.68]
[1644513247478,44.49983984,112.55,112.44,4.444]
[1644513248079,43.54535157,112.54,112.45,42.31593193]
[1644513248884,31.98821678,112.52,112.45,42.31593193]
[1644513249682,44.4738,112.53,112.45,42.31593193]
[1644513249883,13.3405,112.52,112.45,42.31593193]
[1644513250687,43.29588782,112.51,112.45,42.31593193]
[1644513250892,56.63788782,112.51,112.45,42.31593193]
[1644513251095,13.342,112.51,112.45,42.31593193]
[1644513251692,0.03313984,112.54,112.45,42.31593193]
[1644513251892,0.03313984,112.56,112.45,42.31593193]
[1644513252093,41.4064408,112.57,112.45,42.31593193]
[1644513252291,34.16026739,112.55,112.45,42.31593193]
[1644513252492,34.19340723,112.55,112.45,42.31593193]
[1644513252895,2.23122154,112.54,112.45,42.31593193]
[1644513253092,41.37330096,112.53,112.45,42.31593193]
[1644513254616,13.3415,112.52,112.42,4.444]
[1644513254818,4.445,112.51,112.42,4.444]
[1644513255618,34.16026739,112.5,112.43,46.82397856]
[1644513255824,13.3446,112.49,112.43,46.82397856]
[1644513256027,41.37330096,112.48,112.39,13.3438]
[1644513256219,41.37330096,112.48,112.37,38.6703]
[1644513256220,45.82030096,112.48,112.38,464.36781762]
[1644513256418,41.37330096,112.48,112.38,464.36781762]
[1644513256624,41.37330096,112.48,112.38,470.36781762]
[1644513256820,13.3484,112.46,112.38,470.36781762]
[1644513257020,13.3484,112.46,112.39,42.85826844]
[1644513257220,4.447,112.5,112.39,42.85826844]
[1644513257421,0.03313984,112.52,112.39,47.30426844]
[1644513257821,2.26436138,112.52,112.39,47.30426844]
[1644513258022,47.16180383,112.52,112.39,47.30426844]
[1644513258220,2.26436138,112.52,112.39,47.30426844]
[1644513258421,0.03313984,112.52,112.39,62.44233667]
[1644513258622,0.03313984,112.52,112.39,57.99633667]
[1644513258821,0.03313984,112.52,112.39,58.24633667]
[1644513259022,10.68,112.55,112.39,71.59063667]
[1644513259223,2.50727432,112.57,112.41,36.3262157]
[1644513259423,2.50727432,112.59,112.42,15.124]
[1644513259623,2.50727432,112.6,112.42,56.17718682]
[1644513259822,2.50727432,112.62,112.43,41.05318682]
[1644513260128,2.50727432,112.62,112.45,13.3357]
[1644513260424,37.09698487,112.61,112.46,60.21713155]
[1644513260631,37.09698487,112.61,112.46,91.12264878]
[1644513260822,37.09698487,112.61,112.46,97.37264878]
[1644513261023,37.09698487,112.61,112.49,36.76154743]
[1644513261322,37.09698487,112.61,112.49,47.44154743]
[1644513262424,37.09698487,112.61,112.49,51.88354743]
[1644513262723,37.09698487,112.61,112.49,65.21434743]
[1644513263325,39.32820641,112.61,112.49,65.21434743]
[1644513263524,39.32820641,112.61,112.49,51.88354743]
[1644513263727,3.602,112.6,112.49,41.20354743]
[1644513263928,13.3376,112.58,112.49,41.20354743]
[1644513264229,44.11547428,112.56,112.42,98.3654]
[1644513264426,3.607,112.55,112.42,22.5202]
[1644513264626,44.11547428,112.56,112.42,22.5202]
[1644513264826,44.11547428,112.56,112.42,33.2002]
[1644513265025,44.11547428,112.56,112.45,13.3361]
[1644513265226,44.11547428,112.56,112.46,47.01818806]
[1644513265829,46.34669582,112.56,112.46,47.01818806]
[1644513266729,37.84980472,112.54,112.46,47.01818806]
[1644513269031,13.34,112.56,112.46,47.01818806]
[1644513269235,6.10827432,112.58,112.46,47.01818806]
[1644513269433,2.50727432,112.58,112.46,47.01818806]
[1644513269633,28.67739586,112.6,112.46,47.01818806]
[1644513269835,2.23122154,112.58,112.46,47.01818806]
[1644513270034,4.73849586,112.58,112.46,47.01818806]
[1644513270237,50.67563532,112.57,112.46,47.01818806]
[1644513270437,48.14360969,112.57,112.46,47.01818806]
[1644513270840,38.68741165,112.55,112.46,47.01818806]
[1644513271239,40.91863319,112.55,112.46,47.01818806]
[1644513271443,38.68741165,112.55,112.46,47.01818806]
[1644513272636,40.91863319,112.55,112.46,47.01818806]
[1644513272838,54.25893319,112.55,112.46,47.01818806]
[1644513273045,56.76620751,112.55,112.46,47.01818806]
[1644513274162,54.53498597,112.55,112.46,47.01818806]
[1644513274564,41.19468597,112.55,112.46,47.01818806]
[1644513274762,38.68741165,112.55,112.46,47.01818806]
[1644513276967,2.50727432,112.57,112.48,37.10197753]
[1644513277767,2.50727432,112.58,112.48,37.10197753]
[1644513278167,47.15347324,112.58,112.48,37.10197753]
[1644513278367,47.15347324,112.58,112.48,54.87767753]
[1644513279567,23.9389,112.6,112.49,141.68]
[1644513279568,2.53780031,112.6,112.49,141.68]
[1644513279768,3.78849146,112.62,112.5,3.592]
[1644513279968,22.5648,112.74,112.52,89.16]
[1644513280167,5.07320396,112.72,112.54,89.16]
[1644513280369,2.536131,112.73,112.55,14.278]
[1644513280667,45.98942917,112.72,112.56,41.91007507]
[1644513280873,2.536131,112.71,112.59,35.42519723]
[1644513281068,38.63818878,112.7,112.61,46.5760079]
[1644513281868,46.3456,112.75,112.62,75.0]
[1644513282073,6.33101463,112.8,112.62,90.117]
[1644513282369,0.45,112.82,112.62,90.117]
[1644513282370,2.52679836,112.81,112.63,15.41879985]
[1644513282571,2.52679836,112.79,112.64,4.434]
[1644513282772,2.52679836,112.8,112.66,0.3206326]
[1644513282970,0.44514318,112.87,112.67,28.4162]
[1644513283170,2.52441314,112.86,112.67,38.6642]
[1644513283369,2.52441314,112.86,112.68,94.16]
[1644513283570,2.52441314,112.86,112.71,0.30358563]
[1644513283768,0.44514318,112.87,112.72,104.273]
[1644513283971,0.44514318,112.87,112.74,13.2954]
[1644513284169,0.44514318,112.87,112.76,23.53576323]
[1644513284369,0.44514318,112.87,112.77,10.68]
[1644513285571,0.44514318,112.87,112.78,28.99644644]
[1644513287571,0.44514318,112.87,112.78,39.67644644]
[1644513288171,0.44514318,112.87,112.74,4.431]
[1644513288373,0.44514318,112.87,112.72,23.6032]
[1644513289171,0.44514318,112.87,112.73,29.41139181]
[1644513289772,13.74944318,112.87,112.73,29.41139181]
[1644513289973,43.95534303,112.86,112.73,29.41139181]
[1644513290174,43.50534303,112.86,112.73,29.41139181]
[1644513290775,43.50534303,112.86,112.73,40.09139181]
[1644513293077,43.50534303,112.86,112.73,39.59139181]
[1644513293277,43.50534303,112.86,112.73,44.02339181]
[1644513294079,56.80984303,112.86,112.73,44.02339181]
[1644513294278,56.80984303,112.86,112.73,10.68]
[1644513294482,43.95534303,112.86,112.73,10.68]
[1644513294880,43.50534303,112.86,112.73,10.68]
[1644513295379,43.50534303,112.86,112.73,20.01262838]
[1644513295879,40.84811265,112.84,112.73,20.01262838]
[1644513297480,40.84811265,112.84,112.73,33.31412838]
[1644513298080,40.84811265,112.84,112.74,372.45415255]
[1644513298779,40.84811265,112.84,112.75,23.47626978]
[1644513300787,40.84811265,112.84,112.73,23.9806]
[1644513300986,40.84811265,112.84,112.73,10.68]
[1644513302386,40.84811265,112.84,112.71,4.433]
[1644513302586,13.3078,112.83,112.7,23.4086]
[1644513302785,41.29811265,112.84,112.7,23.4086]
[1644513302986,10.68,112.83,112.7,23.4086]
[1644513303187,0.00235776,112.93,112.72,131.0]
[1644513303386,14.0,130.11,112.72,131.0]
[1644513303387,6.19562456,113.12,112.88,1.6500908]
[1644513303588,6.19562456,113.12,112.9,0.31693032]
[1644513303787,300.99668798,113.05,112.91,10.68]
[1644513303987,248.28338798,113.05,112.93,84.53550543]
[1644513304185,1.19334,113.14,112.94,10.68]
[1644513304387,1.19334,113.14,112.96,0.31770934]
[1644513304586,1.19334,113.14,112.98,13.2701]
[1644513304789,21.6960542,113.14,112.99,10.68]
[1644513304985,0.45,113.12,112.99,10.68]
[1644513305186,48.51290773,113.13,112.99,10.68]
[1644513305388,15.6978882,113.11,112.96,10.68]
[1644513305592,48.67979688,113.1,112.96,10.68]
[1644513305788,83.29909859,113.1,112.96,10.68]
[1644513305989,41.33010805,113.08,112.9,26.49579707]
[1644513306189,0.25,113.01,112.9,7.68]
[1644513306388,46.45750004,113.0,112.87,19.70904893]
[1644513306587,48.68872158,113.0,112.87,19.70904893]
[1644513306786,24.9875593,112.99,112.87,19.70904893]
[1644513307024,24.9875593,112.99,112.87,9.02904893]
[1644513307188,48.54341661,112.98,112.87,9.02904893]
[1644513307489,48.54341661,112.98,112.87,0.00904893]
[1644513307490,0.45,112.95,112.87,0.00904893]
[1644513307687,2.23122154,112.97,112.87,0.00904893]
[1644513307887,37.69963279,112.96,112.87,0.00904893]
[1644513308287,39.93085433,112.96,112.87,0.00904893]
[1644513309088,1.53407846,112.92,112.87,0.00904893]
[1644513309289,48.20236693,112.91,112.87,0.00904893]
[1644513309992,3.06815692,112.92,112.87,0.00904893]
[1644513310792,37.55541548,112.92,112.87,0.00904893]
[1644513310991,3.06815692,112.92,112.87,0.00904893]
[1644513312090,48.13140414,112.92,112.87,0.00904893]
[1644513313389,50.36262568,112.92,112.87,0.00904893]
[1644513313993,132.0,112.91,112.7,13.5774]
[1644513314200,132.0,112.88,112.64,101.70799968]
[1644513314394,11.13,112.87,112.62,3.4177577]
[1644513314594,0.45,112.85,112.64,13.3049]
[1644513314794,0.45,112.85,112.62,2.1795712]
[1644513314795,15.106,112.84,112.62,2.1795712]
[1644513314999,15.106,112.84,112.58,271.52152376]
[1644513315000,1.53407846,112.76,112.58,271.52152376]
[1644513315195,1.53407846,112.74,112.59,48.48910859]
[1644513315394,10.68,112.73,112.59,48.48910859]
[1644513315595,20.7658748,112.72,112.59,44.05210859]
[1644513315794,4.438,112.71,112.59,44.05210859]
[1644513315994,1.53407846,112.74,112.6,4.438]
[1644513316195,10.68,112.73,112.6,4.438]
[1644513316394,15.117,112.73,112.59,44.05210859]
[1644513316594,10.68,112.73,112.59,48.49010859]
[1644513316795,42.66935622,112.72,112.59,44.05210859]
[1644513316994,10.68,112.71,112.6,4.438]
[1644513317194,10.68,112.71,112.61,44.89396644]
[1644513317796,4.438,112.7,112.61,44.89396644]
[1644513318195,10.68,112.71,112.61,44.89396644]
[1644513318797,1.53407846,112.74,112.61,44.89396644]
[1644513318999,1.53407846,112.74,112.62,10.68]
[1644513319198,42.57368478,112.74,112.63,48.55109213]
[1644513319398,42.57368478,112.74,112.63,52.98809213]
[1644513319603,4.437,112.73,112.63,52.98809213]
[1644513319798,42.57368478,112.74,112.63,52.98809213]
[1644513320201,8.898,112.75,112.63,52.98809213]
[1644513320399,1.53407846,112.68,112.63,52.98809213]
[1644513320601,8.898,112.75,112.64,10.68]
[1644513320800,8.898,112.75,112.64,21.366]
[1644513321201,4.436,112.83,112.65,46.29235253]
[1644513321401,4.436,112.83,112.66,15.114]
[1644513321599,4.434,112.86,112.66,15.41771771]
[1644513321807,9.27126073,112.85,112.66,16.68]
[1644513322027,16.27126073,112.85,112.67,4.434]
[1644513322201,16.27126073,112.85,112.68,10.68]
[1644513322401,51.12302602,112.84,112.69,36.46754874]
[1644513322603,51.12302602,112.84,112.69,47.14754874]
[1644513323801,51.37302602,112.84,112.69,47.14754874]
[1644513324201,65.13252602,112.84,112.69,47.14754874]
[1644513324402,65.13252602,112.84,112.66,52.9454]
[1644513324403,0.45,112.82,112.66,4.433]
[1644513324603,0.45,112.79,112.65,10.68]
[1644513324802,4.434,112.78,112.62,45.6329]
[1644513325003,15.114,112.78,112.62,45.6329]
[1644513325603,31.10525292,112.77,112.63,47.02929003]
[1644513325811,4.436,112.76,112.63,47.02929003]
[1644513326006,45.19514481,112.75,112.63,47.02929003]
[1644513326405,4.436,112.74,112.63,47.02929003]
[1644513326603,32.60013413,112.73,112.63,47.02929003]
[1644513327204,10.68,112.76,112.63,47.02929003]
[1644513328107,44.50074666,112.75,112.63,47.02929003]
[1644513328308,33.29453228,112.73,112.63,47.02929003]
[1644513329109,33.74453228,112.73,112.59,9.695]
[1644513329315,20.3241,112.71,112.59,9.695]
[1644513329740,15.118,112.7,112.59,9.695]
[1644513330141,33.29453228,112.67,112.6,39.00514863]
[1644513330643,4.438,112.7,112.6,39.00514863]
[1644513330851,17.68,112.71,112.6,39.00514863]
[1644513331037,4.438,112.72,112.6,39.00514863]
[1644513331638,47.39251563,112.71,112.6,39.00514863]
[1644513331837,4.438,112.7,112.6,39.00514863]
[1644513332137,10.68,112.72,112.6,39.00514863]
[1644513332343,13.3223,112.73,112.6,39.00514863]
[1644513332538,11.437,112.72,112.6,39.00514863]
[1644513333139,42.44020453,112.71,112.6,39.00514863]
[1644513333339,56.01350453,112.71,112.6,39.00514863]
[1644513333538,66.69350453,112.71,112.6,39.00514863]
[1644513333939,24.0033,112.71,112.6,39.00514863]
[1644513334139,7.0,112.71,112.6,39.00514863]
[1644513334341,23.9998,112.74,112.6,39.00514863]
[1644513334538,11.437,112.73,112.6,39.00514863]
[1644513334941,36.47770171,112.71,112.6,39.00514863]
[1644513335142,41.31757723,112.69,112.6,39.00514863]
[1644513336840,10.68,112.71,112.6,39.00514863]
[1644513337040,19.96171709,112.71,112.6,39.00514863]
[1644513337243,10.68,112.71,112.6,39.00514863]
[1644513337846,42.55027144,112.7,112.6,39.00514863]
[1644513338147,4.438,112.72,112.6,39.00514863]
[1644513338948,38.44508153,112.71,112.6,39.00514863]
[1644513341751,15.118,112.7,112.6,39.00514863]
[1644513341951,7.0,112.69,112.56,4.438]
[1644513342153,11.439,112.68,112.56,4.438]
[1644513342851,39.35019741,112.67,112.57,47.59544079]
[1644513343052,38.44508153,112.65,112.57,47.59544079]
[1644513343251,4.439,112.68,112.57,47.59544079]
[1644513343651,7.0,112.7,112.57,47.59544079]
[1644513344150,10.68,112.69,112.57,47.59544079]
[1644513344351,33.09939714,112.67,112.57,47.59544079]
[1644513344553,43.77939714,112.67,112.57,47.59544079]
[1644513345256,36.68267069,112.65,112.57,47.59544079]
[1644513345457,7.0,112.68,112.57,47.59544079]
[1644513345655,10.68,112.69,112.57,47.59544079]
[1644513346057,4.439,112.68,112.57,47.59544079]
[1644513346256,10.68,112.67,112.54,1.2381865]
[1644513346456,4.44,112.66,112.53,46.6978]
[1644513346657,10.68,112.65,112.53,46.6978]
[1644513346858,7.0,112.63,112.53,46.6978]
[1644513347257,7.0,112.66,112.54,45.97171081]
[1644513347658,7.0,112.66,112.55,4.44]
[1644513347857,7.0,112.66,112.54,45.97171081]
[1644513348063,11.44,112.69,112.54,45.97171081]
[1644513348281,42.29387331,112.66,112.54,45.97171081]
[1644513348562,46.73387331,112.66,112.54,45.97171081]
[1644513348758,42.29387331,112.66,112.54,45.97171081]
[1644513349361,10.68,112.68,112.55,113.0]
[1644513349659,102.83772623,112.73,112.57,89.16]
[1644513349857,102.83772623,112.73,112.6,1.6881865]
[1644513350058,102.83772623,112.73,112.61,11.9181865]
[1644513350260,102.83772623,112.73,112.61,34.82688491]
[1644513350459,143.32347529,112.73,112.62,134.3973253]
[1644513350659,143.32347529,112.73,112.64,34.6866324]
[1644513350861,40.48574906,112.73,112.66,45.04873026]
[1644513351066,40.48574906,112.73,112.66,55.72873026]
[1644513351463,40.48574906,112.73,112.66,45.04873026]
[1644513352261,40.48574906,112.73,112.62,4.436]
[1644513352460,40.48574906,112.73,112.61,10.68]
[1644513353261,40.48574906,112.73,112.62,40.32881721]
[1644513353863,42.29105811,112.71,112.62,40.32881721]
[1644513354663,4.437,112.72,112.62,40.32881721]
[1644513354866,13.3159,112.75,112.62,40.32881721]
[1644513355064,13.3159,112.75,112.62,44.76581721]
[1644513355264,1.23507979,112.75,112.62,44.76581721]
[1644513355789,37.76987235,112.74,112.62,44.76581721]
[1644513355964,4.422,112.75,112.62,45.01581721]
[1644513356163,1.23507979,112.78,112.63,23.9943]
[1644513356367,1.23507979,112.78,112.63,30.2443]
[1644513356564,1.23507979,112.79,112.68,0.30145546]
[1644513356764,104.07280602,112.81,112.69,10.68]
[1644513356965,147.33938795,112.81,112.7,42.30730522]
[1644513357164,44.50166172,112.81,112.71,23.9847]
[1644513357367,44.50166172,112.81,112.72,48.00824234]
[1644513358564,44.50166172,112.81,112.72,54.00824234]
[1644513358967,44.50166172,112.81,112.72,48.00824234]
[1644513362069,48.01196408,112.79,112.68,10.68]
[1644513362272,48.01196408,112.79,112.67,47.6135]
[1644513362470,4.381,112.78,112.67,47.6135]
[1644513362669,48.01196408,112.79,112.67,47.6135]
[1644513363079,48.01196408,112.79,112.68,34.43383584]
[1644513363705,61.32366408,112.79,112.68,34.43383584]
[1644513364602,48.01196408,112.79,112.68,34.43383584]
[1644513365013,48.01196408,112.79,112.68,58.42213584]
[1644513365203,48.01196408,112.79,112.68,45.11383584]
[1644513365403,48.01196408,112.79,112.68,34.43383584]
[1644513366706,44.39116828,112.77,112.68,34.43383584]
[1644513367303,44.39116828,112.77,112.64,4.434]
[1644513367509,4.421,112.76,112.63,23.6351]
[1644513367704,13.3198,112.72,112.59,47.2277]
[1644513367904,4.408,112.74,112.59,57.9077]
[1644513368104,7.141,112.72,112.59,57.9077]
[1644513368308,35.70903596,112.71,112.6,36.45019405]
[1644513368506,10.68,112.74,112.6,36.45019405]
[1644513368806,23.9973,112.74,112.61,17.7533]
[1644513369005,4.382,112.73,112.6,36.45019405]
[1644513369208,1.23507979,112.77,112.6,36.45019405]
[1644513369408,5.58907979,112.76,112.6,36.45019405]
[1644513369708,43.16429035,112.75,112.6,36.45019405]
[1644513369907,41.91062035,112.7,112.6,36.45019405]
[1644513370109,59.4082,112.74,112.6,36.45019405]
[1644513370110,45.13064075,112.68,112.6,36.45019405]
[1644513370910,4.406,112.71,112.6,36.45019405]
[1644513371109,15.118,112.74,112.6,36.45019405]
[1644513371309,1.23507979,112.75,112.6,47.38019405]
[1644513371510,4.437,112.74,112.6,53.13019405]
[1644513371713,4.437,112.76,112.6,53.38019405]
[1644513371911,44.71016127,112.75,112.6,53.13019405]
[1644513372110,36.93669839,112.72,112.6,47.13019405]
[1644513372910,36.93669839,112.72,112.6,36.45019405]
[1644513373710,50.25669839,112.72,112.6,36.45019405]
[1644513373911,36.93669839,112.72,112.6,36.45019405]
[1644513374112,44.4079,112.73,112.6,36.45019405]
[1644513374113,35.16853699,112.7,112.6,36.45019405]
[1644513374314,37.35926032,112.68,112.6,36.45019405]
[1644513377315,13.3229,112.7,112.6,36.45019405]
[1644513377515,1.23507979,112.74,112.6,47.38019405]
[1644513377718,47.7027,112.75,112.61,4.437]
[1644513377919,47.7027,112.75,112.61,15.117]
[1644513378119,47.7027,112.75,112.61,21.117]
[1644513378322,35.11458428,112.74,112.62,42.30945142]
[1644513378522,39.55158428,112.74,112.62,42.30945142]
[1644513379327,13.3199,112.72,112.62,42.30945142]
[1644513379529,39.55158428,112.74,112.59,47.2277]
[1644513379727,10.93,112.73,112.59,47.2277]
[1644513379926,4.42,112.72,112.59,47.2277]
[1644513380626,39.75687006,112.68,112.6,35.53045178]
[1644513382828,53.08087006,112.68,112.6,35.53045178]
[1644513383827,53.08087006,112.68,112.57,36.1699]
[1644513384027,13.3253,112.67,112.56,1.2381865]
[1644513384229,17.7453,112.67,112.54,48.3221865]
[1644513384929,43.99564513,112.66,112.54,1.2381865]
[1644513385131,13.3289,112.64,112.53,1.2381865]
[1644513385331,10.68,112.63,112.52,1.2381865]
[1644513385632,10.68,112.63,112.48,1.2381865]
[1644513385633,16.41,112.63,112.48,1.2381865]
[1644513385828,15.1,112.63,112.47,82.9582865]
[1644513386026,13.335,112.59,112.49,48.66866335]
[1644513386227,46.45025858,112.58,112.49,48.66866335]
[1644513387130,45.3686,112.64,112.49,48.66866335]
[1644513387327,15.102,112.63,112.49,48.66866335]
[1644513387532,10.68,112.63,112.49,49.90684985]
[1644513387735,10.68,112.63,112.49,48.66866335]
[1644513388131,42.96451008,112.62,112.49,48.66866335]
[1644513388330,47.38751008,112.62,112.49,48.66866335]
[1644513388733,47.38751008,112.62,112.49,62.00006335]
[1644513388933,42.96451008,112.62,112.51,38.61178128]
[1644513390359,47.37951008,112.62,112.51,38.61178128]
[1644513390860,13.3334,112.61,112.51,38.61178128]
[1644513391060,35.3617045,112.6,112.51,38.61178128]
[1644513395064,39.7817045,112.6,112.51,38.61178128]
[1644513395366,42.02340057,112.58,112.51,38.61178128]
[1644513396567,42.02340057,112.58,112.49,0.024]
[1644513396865,42.02340057,112.58,112.47,22.7371]
[1644513397466,48.30228501,112.56,112.47,22.7371]
[1644513397667,61.64098501,112.56,112.48,47.29063711]
[1644513397869,61.64098501,112.56,112.47,0.024]
[1644513398066,61.64098501,112.56,112.45,52.6297]
[1644513398466,58.98228501,112.56,112.45,52.6297]
[1644513398867,58.98228501,112.56,112.46,47.64639446]
[1644513399068,13.3397,112.55,112.46,47.64639446]
[1644513399370,13.3397,112.55,112.46,52.09039446]
[1644513399371,39.46118271,112.54,112.46,52.09039446]
[1644513399570,39.46118271,112.54,112.45,48.1637]
[1644513400668,39.46118271,112.54,112.46,43.56329826]
[1644513401372,39.46118271,112.54,112.44,0.024]
[1644513401571,39.46118271,112.54,112.42,29.8837865]
[1644513401774,39.46118271,112.54,112.42,35.8837865]
[1644513402173,42.96895834,112.51,112.43,48.14310607]
[1644513402378,42.96895834,112.51,112.43,54.16710607]
[1644513402576,42.96895834,112.51,112.43,54.14310607]
[1644513403877,13.3424,112.52,112.43,54.14310607]
[1644513404179,10.68,112.56,112.43,55.63129257]
[1644513404477,10.68,112.59,112.44,4.444]
[1644513404676,4.306,112.6,112.46,1.2381865]
[1644513404877,37.64225384,112.6,112.47,50.2128967]
[1644513405082,37.64225384,112.6,112.48,0.024]
[1644513405277,42.08425384,112.6,112.48,0.024]
[1644513405482,43.09137812,112.58,112.48,0.024]
[1644513405678,43.09137812,112.58,112.47,45.7708967]
[1644513405879,56.42677812,112.58,112.47,59.1051967]
[1644513406279,56.42677812,112.58,112.47,59.3551967]
[1644513406481,43.09137812,112.58,112.47,59.3551967]
[1644513406679,43.09137812,112.58,112.49,46.7465829]
[1644513406880,43.09137812,112.58,112.49,60.3270829]
[1644513407079,13.3305,112.62,112.49,66.3270829]
[1644513407280,102.38126523,112.66,112.51,0.30632125]
[1644513407281,106.82326523,112.66,112.51,0.30632125]
[1644513407579,102.38126523,112.66,112.52,10.68]
[1644513407779,115.70696523,112.66,112.52,65.5395]
[1644513407982,36.92653494,112.64,112.53,43.64857561]
[1644513408180,102.38126523,112.66,112.53,43.64857561]
[1644513408181,45.6782072,112.62,112.53,43.64857561]
[1644513409180,59.0085072,112.62,112.53,43.64857561]
[1644513411282,58.51341632,112.6,112.53,43.64857561]
[1644513411983,58.51341632,112.6,112.5,172.8701]
[1644513412184,45.18131632,112.6,112.5,53.6389]
[1644513412383,13.3352,112.58,112.5,53.6389]
[1644513412588,45.18131632,112.6,112.5,6.0]
[1644513412783,55.86131632,112.6,112.49,30.0136]
[1644513412982,55.86131632,112.6,112.5,44.76702419]
[1644513413383,55.86131632,112.6,112.5,50.76702419]
[1644513413582,36.9326496,112.55,112.5,6.0]
[1644513413985,36.9326496,112.55,112.48,7.2381865]
[1644513414185,36.9326496,112.55,112.48,1.2381865]
[1644513414383,36.9326496,112.55,112.48,7.2381865]
[1644513414584,36.9326496,112.55,112.49,35.0397834]
[1644513414883,36.9326496,112.55,112.49,42.2779699]